bitfinex/quotes_BTCUSD_20250403
["timestamp","ask_amount","ask_price","bid_price","bid_amount"]
[1743678705597,0.98320385,83246.0,83245.0,6e-07]
[1743678706205,0.968663,83246.0,83245.0,6e-07]
[1743678710079,1.21670346,83246.0,83245.0,6e-07]
[1743678710486,1.21687186,83246.0,83245.0,6e-07]
[1743678711880,0.252294,83236.0,83235.0,6e-07]
[1743678712084,0.571294,83236.0,83235.0,6e-07]
[1743678712284,0.911294,83236.0,83235.0,6e-07]
[1743678715392,0.862294,83236.0,83235.0,6e-07]
[1743678720962,0.99359045,83236.0,83235.0,6e-07]
[1743678721530,1.00276491,83236.0,83235.0,6e-07]
[1743678722346,0.88600931,83236.0,83235.0,6e-07]
[1743678722570,0.87146846,83236.0,83235.0,6e-07]
[1743678722788,0.87146846,83236.0,83235.0,0.0003374]
[1743678724277,0.85945446,83236.0,83235.0,0.0003374]
[1743678724690,0.87146846,83236.0,83235.0,0.0477374]
[1743678725268,0.87146846,83236.0,83235.0,0.05524718]
[1743678726221,0.51945446,83236.0,83235.0,0.05524718]
[1743678726439,0.53146846,83236.0,83235.0,0.05524718]
[1743678726661,0.53146846,83236.0,83235.0,0.08227953]
[1743678726875,0.522294,83236.0,83235.0,0.19903513]
[1743678727029,0.27,83236.0,83235.0,0.19903513]
[1743678727374,0.51028,83236.0,83235.0,0.24463513]
[1743678727597,0.522294,83236.0,83235.0,0.24838954]
[1743678729308,0.522294,83236.0,83235.0,0.23337157]
[1743678731118,0.522294,83236.0,83235.0,0.37393157]
[1743678731883,0.522294,83236.0,83235.0,0.38894879]
[1743678733169,0.522294,83236.0,83235.0,0.37393157]
[1743678736314,0.51028,83236.0,83235.0,0.37393157]
[1743678736505,0.522294,83236.0,83235.0,0.37393157]
[1743678736704,0.27,83236.0,83235.0,0.37393157]
[1743678737287,0.27,83236.0,83235.0,0.62622857]
[1743678738023,0.27,83236.0,83235.0,0.6412442]
[1743678739303,0.27,83236.0,83235.0,0.62622857]
[1743678740187,0.27,83236.0,83235.0,0.61421457]
[1743678740916,0.27,83236.0,83235.0,0.37393157]
[1743678741748,0.51028,83236.0,83235.0,0.37393157]
[1743678741949,0.522294,83236.0,83235.0,0.37393157]
[1743678743094,0.522294,83236.0,83235.0,0.37017716]
[1743678743530,0.51028,83236.0,83235.0,0.37017716]
[1743678743905,0.51028,83236.0,83235.0,0.22961716]
[1743678744151,0.51028,83236.0,83235.0,0.36941716]
[1743678744733,0.30796149,83236.0,83235.0,0.36941716]
[1743678745856,0.31997549,83236.0,83235.0,0.27629716]
[1743678746155,0.31997549,83236.0,83235.0,0.27633716]
[1743678746742,0.31997549,83236.0,83235.0,0.26432278]
[1743678747131,0.32014399,83236.0,83235.0,0.26432278]
[1743678749200,0.32014399,83236.0,83235.0,0.00784718]
[1743678755883,0.32014399,83236.0,83235.0,0.01986181]
[1743678756316,0.32014399,83236.0,83235.0,0.13661741]
[1743678757009,0.32014399,83236.0,83235.0,0.15163483]
[1743678757948,0.32014399,83236.0,83235.0,0.15538912]
[1743678763160,0.32014399,83236.0,83235.0,0.16139599]
[1743678765515,0.32014399,83236.0,83235.0,0.04464039]
[1743678766426,0.06784999,83236.0,83235.0,0.16139599]
[1743678766600,0.06784999,83236.0,83235.0,0.21049599]
[1743678766996,0.06784999,83236.0,83235.0,0.45077899]
[1743678767793,0.06784999,83236.0,83235.0,0.50929299]
[1743678768886,0.06784999,83236.0,83235.0,0.51466694]
[1743678770659,0.06784999,83236.0,83235.0,0.50929299]
[1743678772615,0.0001685,83236.0,83235.0,0.566273]
[1743678772813,0.0001684,83246.0,83244.0,0.35940985]
[1743678773018,0.0001684,83246.0,83244.0,0.65268156]
[1743678773258,0.0001684,83246.0,83244.0,0.61524545]
[1743678773853,0.240194,83266.0,83263.0,0.240202]
[1743678774069,0.510194,83266.0,83264.0,0.2557556]
[1743678774257,0.27,83266.0,83264.0,0.4959526]
[1743678774466,0.27,83266.0,83265.0,0.252205]
[1743678774617,0.27,83266.0,83265.0,0.3689606]
[1743678775404,0.27,83266.0,83265.0,0.40350243]
[1743678776194,0.27,83266.0,83265.0,0.40725672]
[1743678777565,0.27,83266.0,83265.0,0.45445672]
[1743678777825,0.0001684,83276.0,83275.0,0.299376]
[1743678778071,0.1101684,83276.0,83275.0,0.4643316]
[1743678778717,0.1101684,83276.0,83275.0,0.48385601]
[1743678779453,0.1101684,83276.0,83275.0,0.4876103]
[1743678779695,0.1101684,83276.0,83275.0,0.50262772]
[1743678780404,0.0001684,83276.0,83275.0,0.52216857]
[1743678781497,0.0001684,83276.0,83275.0,0.66204857]
[1743678781696,0.0001684,83276.0,83275.0,0.66805544]
[1743678783775,0.0001684,83276.0,83275.0,1.3392966]
[1743678784136,0.0001684,83276.0,83275.0,1.33328973]
[1743678785510,0.0001683,83278.0,83277.0,0.37021085]
[1743678785702,0.0001683,83278.0,83277.0,0.48696645]
[1743678786663,0.0001683,83278.0,83277.0,0.52150828]
[1743678787068,3e-07,83279.0,83278.0,0.61170685]
[1743678787439,0.0001684,83283.0,83282.0,0.70859485]
[1743678787440,7e-07,83283.0,83282.0,0.70859485]
[1743678787637,7e-07,83283.0,83282.0,1.52159161]
[1743678789461,0.2347096,83321.0,83318.0,0.240043]
[1743678789663,0.2347096,83321.0,83310.0,0.012003]
[1743678789664,0.240053,83315.0,83311.0,0.240061]
[1743678789876,0.252076,83308.0,83303.0,0.012004]
[1743678790088,0.240078,83307.0,83306.0,0.1167556]
[1743678790289,0.500078,83307.0,83306.0,0.1167556]
[1743678790495,0.512081,83307.0,83306.0,0.1167556]
[1743678790936,0.512081,83307.0,83306.0,0.13628001]
[1743678792699,0.26,83307.0,83306.0,0.13628001]
[1743678792859,0.26,83307.0,83306.0,0.37635801]
[1743678793218,0.26,83307.0,83306.0,0.38836101]
[1743678793425,0.26,83307.0,83306.0,0.40337843]
[1743678793965,0.26,83307.0,83306.0,0.15129743]
[1743678794140,0.272003,83307.0,83306.0,0.15129743]
[1743678794338,0.5122464,83307.0,83306.0,0.15129743]
[1743678794786,0.6032464,83307.0,83306.0,0.15129743]
[1743678795396,0.5122464,83307.0,83306.0,0.15129743]
[1743678796355,0.5579464,83307.0,83306.0,0.01952441]
[1743678797087,0.6078464,83307.0,83306.0,0.01952441]
[1743678800032,0.6078464,83307.0,83306.0,0.13628001]
[1743678800247,0.5122464,83307.0,83306.0,0.13628001]
[1743678800821,0.5122464,83307.0,83306.0,0.15128558]
[1743678802206,0.5122464,83307.0,83306.0,0.15503693]
[1743678803036,0.2601684,83307.0,83306.0,0.15503693]
[1743678803187,0.2601684,83307.0,83306.0,0.40711793]
[1743678803956,0.2601684,83307.0,83306.0,0.4131198]
[1743678804145,0.04176531,83307.0,83306.0,0.4131198]
[1743678805933,0.04176531,83307.0,83306.0,0.39811423]
[1743678806161,0.04176531,83307.0,83306.0,0.39845083]
[1743678806739,0.04176531,83307.0,83306.0,0.14636983]
[1743678806936,0.29384331,83307.0,83306.0,0.14636983]
[1743678807158,0.29384331,83307.0,83306.0,0.15166292]
[1743678808294,0.29384331,83307.0,83306.0,0.14636983]
[1743678809289,0.08374628,83307.0,83306.0,0.14636983]
[1743678809508,0.32374628,83307.0,83306.0,0.14636983]
[1743678810000,0.32374628,83307.0,83306.0,0.02961423]
[1743678810001,0.67574928,83307.0,83306.0,0.02961423]
[1743678810669,0.67574928,83307.0,83306.0,0.02361236]
[1743678811894,0.73589013,83307.0,83306.0,3.6e-07]
[1743678812133,0.79123811,83307.0,83306.0,3.6e-07]
[1743678816005,0.93035811,83307.0,83306.0,3.6e-07]
[1743678817277,0.79123811,83307.0,83306.0,3.6e-07]
[1743678818666,0.79140641,83307.0,83306.0,3.6e-07]
[1743678821257,0.90816201,83307.0,83306.0,3.6e-07]
[1743678823521,0.93816201,83307.0,83306.0,3.6e-07]
[1743678823887,1.05490602,83307.0,83306.0,3.6e-07]
[1743678828598,1.05490602,83307.0,83267.0,0.13864]
[1743678828599,0.96280602,83307.0,83267.0,0.13864]
[1743678828798,0.252197,83268.0,83267.0,0.2553956]
[1743678828986,0.482197,83268.0,83267.0,0.1167556]
[1743678830597,0.482197,83268.0,83267.0,0.1170926]
[1743678840204,0.23,83268.0,83267.0,0.1291016]
[1743678840429,0.23,83268.0,83267.0,0.42559864]
[1743678841747,0.23,83268.0,83267.0,0.42935136]
[1743678841958,0.23,83268.0,83267.0,0.47875136]
[1743678842123,0.23,83268.0,83267.0,0.49075964]
[1743678843417,0.23,83268.0,83267.0,0.49676447]
[1743678843838,0.23,83268.0,83267.0,0.51177497]
[1743678844167,0.240133,83288.0,83284.0,0.240142]
[1743678844392,0.500133,83288.0,83285.0,0.2553956]
[1743678844590,0.500133,83288.0,83287.0,0.4179946]
[1743678844591,0.26,83288.0,83287.0,0.4179946]
[1743678844801,0.26,83288.0,83287.0,0.4653946]
[1743678845863,0.26,83288.0,83287.0,0.49991942]
[1743678846774,0.26,83288.0,83287.0,0.50967697]
[1743678847570,0.26,83288.0,83287.0,0.51489651]
[1743678849139,0.26,83288.0,83287.0,0.50967697]
[1743678849814,0.26,83288.0,83287.0,0.50367214]
[1743678850179,0.26,83288.0,83287.0,0.64231214]
[1743678852073,0.26,83288.0,83287.0,0.62730164]
[1743678852369,0.240066,83311.0,83306.0,0.252081]
[1743678852568,0.240066,83311.0,83306.0,0.6032766]
[1743678852569,0.2601683,83307.0,83306.0,0.6032766]
[1743678853366,0.2601683,83307.0,83306.0,0.61078264]
[1743678853798,0.2601683,83307.0,83306.0,0.6228486]
[1743678859114,0.2601683,83307.0,83306.0,0.4842086]
[1743678859289,0.2601683,83307.0,83306.0,0.6228086]
[1743678861532,0.2601683,83307.0,83306.0,0.61074264]
[1743678864973,0.0001683,83307.0,83306.0,0.61074264]
[1743678865151,0.0001683,83307.0,83306.0,0.61070264]
[1743678865702,0.0001683,83307.0,83306.0,0.61103964]
[1743678866498,0.0001683,83307.0,83306.0,0.62304792]
[1743678866914,0.0001683,83307.0,83306.0,1.63928908]
[1743678867123,0.0001683,83307.0,83306.0,1.64303979]
[1743678867548,0.0001683,83307.0,83306.0,1.65804036]
[1743678868503,0.0001683,83307.0,83306.0,1.66697325]
[1743678868996,0.0001683,83321.0,83320.0,0.252039]
[1743678869190,0.1101683,83321.0,83320.0,0.4153946]
[1743678869408,0.1101683,83321.0,83320.0,0.5539546]
[1743678870358,0.1101683,83321.0,83320.0,0.57346892]
[1743678871509,0.1101683,83321.0,83320.0,0.57721963]
[1743678872874,0.3502033,83321.0,83320.0,0.27858063]
[1743678873065,0.1101683,83321.0,83320.0,0.28751352]
[1743678873207,0.1101683,83321.0,83320.0,0.30851739]
[1743678873485,0.1101683,83321.0,83320.0,0.42199639]
[1743678873679,0.1101683,83321.0,83320.0,0.56055639]
[1743678875478,0.1101683,83321.0,83320.0,0.30851739]
[1743678875683,0.3502033,83321.0,83320.0,0.30851739]
[1743678875888,0.3622043,83321.0,83320.0,0.30851739]
[1743678876490,0.1101683,83321.0,83320.0,0.30851739]
[1743678876745,0.1101683,83321.0,83320.0,0.54855539]
[1743678877129,0.1101683,83321.0,83320.0,0.2995845]
[1743678877345,0.3502033,83321.0,83320.0,0.2995845]
[1743678878058,0.1101683,83321.0,83320.0,0.2995845]
[1743678878294,0.1101683,83321.0,83320.0,0.5516235]
[1743678878549,0.1101683,83321.0,83320.0,0.56055639]
[1743678880457,0.1101683,83321.0,83320.0,0.54855539]
[1743678881069,0.1101683,83321.0,83320.0,0.56055639]
[1743678881337,0.3502033,83321.0,83320.0,0.30851739]
[1743678881558,0.3622043,83321.0,83320.0,0.30851739]
[1743678883218,0.3622043,83321.0,83320.0,0.16995739]
[1743678885372,0.1101683,83321.0,83320.0,0.16995739]
[1743678885588,0.3622043,83321.0,83320.0,0.16995739]
[1743678886239,0.3622043,83321.0,83320.0,0.30847739]
[1743678886956,0.3502033,83321.0,83320.0,0.30847739]
[1743678887523,0.1101683,83321.0,83320.0,0.30847739]
[1743678887716,0.1101683,83321.0,83320.0,0.56051639]
[1743678890513,0.3502033,83321.0,83320.0,0.30847739]
[1743678890715,0.3622043,83321.0,83320.0,0.30847739]
[1743678891946,0.1101683,83321.0,83320.0,0.30847739]
[1743678892151,0.3502033,83321.0,83320.0,0.30847739]
[1743678892369,0.3502033,83321.0,83320.0,0.29347835]
[1743678893657,0.3622043,83321.0,83320.0,0.29347835]
[1743678893859,0.3622043,83321.0,83320.0,0.15495835]
[1743678895040,0.1101683,83321.0,83320.0,0.15495835]
[1743678895231,0.3502033,83321.0,83320.0,0.15495835]
[1743678895602,0.3622043,83321.0,83320.0,0.16395516]
[1743678897837,0.3622043,83321.0,83320.0,0.16395576]
[1743678898516,0.3622043,83321.0,83320.0,0.16995641]
[1743678898923,0.3622043,83321.0,83320.0,0.30847641]
[1743678900406,0.3622043,83321.0,83320.0,0.30247576]
[1743678903366,0.4080043,83321.0,83320.0,0.04720016]
[1743678903567,0.7480043,83321.0,83320.0,0.04720016]
[1743678903792,0.4080043,83321.0,83320.0,0.04720016]
[1743678904195,0.42254515,83321.0,83320.0,0.02019024]
[1743678904856,0.42254515,83321.0,83320.0,0.01643953]
[1743678906139,0.42254515,83321.0,83320.0,0.00750664]
[1743678907943,0.76254515,83321.0,83320.0,6e-07]
[1743678908781,0.80774515,83321.0,83320.0,6e-07]
[1743678911392,1.04124476,83321.0,83320.0,6e-07]
[1743678911587,0.94630515,83321.0,83320.0,6e-07]
[1743678913676,0.80774515,83321.0,83320.0,6e-07]
[1743678917570,0.94630515,83321.0,83320.0,6e-07]
[1743678918483,0.80774515,83321.0,83320.0,6e-07]
[1743678920260,0.80756359,83321.0,83320.0,6e-07]
[1743678921761,0.81236559,83321.0,83320.0,6e-07]
[1743678923842,0.80282396,83321.0,83320.0,6e-07]
[1743678926455,0.91974806,83321.0,83320.0,6e-07]
[1743678928332,1.03649207,83321.0,83320.0,6e-07]
[1743678928754,0.91974806,83321.0,83320.0,6e-07]
[1743678929161,0.80299246,83321.0,83320.0,6e-07]
[1743678929331,0.94155246,83321.0,83320.0,6e-07]
[1743678933379,0.80299246,83321.0,83320.0,6e-07]
[1743678937922,0.71199246,83321.0,83320.0,6e-07]
[1743678938709,0.71199246,83321.0,83320.0,0.0003374]
[1743678940022,0.35745161,83321.0,83320.0,0.0003374]
[1743678940221,0.35264961,83321.0,83320.0,0.0003374]
[1743678940424,0.35264961,83321.0,83320.0,0.117093]
[1743678941232,0.35264961,83321.0,83320.0,0.13659791]
[1743678942938,0.35264961,83321.0,83320.0,0.12459489]
[1743678943200,0.35264961,83321.0,83320.0,0.00783929]
[1743678945890,0.35264961,83321.0,83320.0,0.0003374]
[1743678955823,0.35264961,83321.0,83320.0,0.117093]
[1743678956092,0.35264961,83321.0,83320.0,0.163293]
[1743678956093,0.10061361,83321.0,83320.0,0.163293]
[1743678956320,0.10061361,83321.0,83320.0,0.450231]
[1743678957037,0.34064861,83321.0,83320.0,0.210193]
[1743678957479,0.34064861,83321.0,83320.0,0.22969692]
[1743678957594,0.35264961,83321.0,83320.0,0.23344724]
[1743678959131,0.35264961,83321.0,83320.0,0.02359164]
[1743678959383,0.252049,83317.0,83316.0,5.5e-07]
[1743678959574,0.86658985,83317.0,83316.0,5.5e-07]
[1743678960670,0.639078,83307.0,83306.0,8e-08]
[1743678960953,0.899078,83307.0,83306.0,8e-08]
[1743678961400,1.2043122,83307.0,83306.0,8e-08]
[1743678961596,1.2043122,83307.0,83272.0,0.0477]
[1743678961597,0.252181,83273.0,83272.0,6.8e-07]
[1743678961730,0.512181,83273.0,83272.0,6.8e-07]
[1743678963111,0.512181,83273.0,83263.0,0.0455]
[1743678963112,0.252197,83268.0,83263.0,0.0455]
[1743678963274,0.512197,83268.0,83263.0,0.0455]
[1743678963476,0.512197,83268.0,83260.0,0.0485]
[1743678963878,0.512197,83268.0,83257.0,0.0461]
[1743678964655,0.512197,83268.0,83251.0,0.004]
[1743678970647,0.512197,83268.0,83251.0,0.244236]
[1743678970804,0.512197,83268.0,83258.0,0.01201]
[1743678970978,0.512197,83268.0,83260.0,0.240211]
[1743678971361,0.512197,83268.0,83257.0,0.240219]
[1743678971768,0.512197,83268.0,83256.0,0.252233]
[1743678972439,0.512197,83268.0,83257.0,0.012011]
[1743678972615,0.512197,83268.0,83257.0,0.240218]
[1743678972772,0.512197,83268.0,83267.0,0.047037]
[1743678974931,0.512197,83268.0,83267.0,0.1637926]
[1743678976352,0.26,83268.0,83267.0,0.4615926]
[1743678977149,0.26,83268.0,83267.0,0.2093926]
[1743678977362,0.26,83268.0,83267.0,0.4495836]
[1743678977930,0.26,83268.0,83267.0,0.4515926]
[1743678978670,0.512197,83268.0,83267.0,0.1993926]
[1743678982144,0.512197,83268.0,83267.0,0.3379926]
[1743678982349,0.512197,83268.0,83258.0,0.0491]
[1743678982583,0.252236,83255.0,83254.0,0.00375275]
[1743678982791,0.482236,83255.0,83254.0,0.12050835]
[1743678983565,0.482236,83255.0,83254.0,0.1167556]
[1743678986222,0.252245,83252.0,83251.0,0.14256]
[1743678986413,0.512245,83252.0,83251.0,0.2593156]
[1743678987050,0.512245,83252.0,83251.0,0.14256]
[1743678987251,0.512245,83252.0,83251.0,0.004]
[1743678994958,0.26,83252.0,83251.0,0.3730036]
[1743678995769,0.26,83252.0,83251.0,0.38197184]
[1743678995993,0.0001685,83268.0,83267.0,0.2522]
[1743678996171,0.0701685,83268.0,83267.0,0.6047556]
[1743678997051,0.0701685,83268.0,83267.0,0.61372384]
[1743678997257,0.0001685,83268.0,83267.0,0.61372384]
[1743678997455,0.0001685,83268.0,83267.0,0.95372384]
[1743678997890,0.0001685,83268.0,83267.0,1.6444824]
[1743678998313,0.012004,83303.0,83295.0,0.012005]
[1743678998539,0.0001685,83307.0,83303.0,0.012004]
[1743678998743,0.2401685,83307.0,83304.0,0.1167556]
[1743678999093,0.240079,83306.0,83304.0,0.1167556]
[1743678999274,0.470079,83306.0,83304.0,0.1167556]
[1743678999656,0.470079,83306.0,83305.0,0.00750583]
[1743678999905,0.23,83306.0,83305.0,0.12426143]
[1743679000964,0.242003,83306.0,83305.0,0.12426143]
[1743679001170,0.242003,83306.0,83305.0,0.00750583]
[1743679001500,0.252091,83303.0,83302.0,0.00750583]
[1743679001644,0.532091,83303.0,83302.0,0.12426143]
[1743679002450,0.532091,83303.0,83302.0,0.1167556]
[1743679005127,0.28,83303.0,83302.0,0.1167556]
[1743679005325,0.532091,83303.0,83302.0,0.1167556]
[1743679005961,0.532091,83303.0,83302.0,0.11607205]
[1743679007087,0.252133,83289.0,83281.0,0.26791948]
[1743679007289,0.500127,83289.0,83288.0,0.3019156]
[1743679007515,0.512133,83289.0,83288.0,0.3019156]
[1743679007771,0.500127,83289.0,83288.0,0.3019156]
[1743679008157,0.26,83289.0,83288.0,0.3019156]
[1743679009359,0.26,83289.0,83288.0,0.3139216]
[1743679009962,0.26,83289.0,83288.0,0.5540516]
[1743679011551,0.26,83289.0,83288.0,0.5543886]
[1743679013705,0.26,83289.0,83288.0,0.4158286]
[1743679013924,0.26,83289.0,83288.0,0.5543486]
[1743679014271,0.26,83289.0,83288.0,0.4158286]
[1743679014492,0.26,83289.0,83288.0,0.5543486]
[1743679017012,0.500127,83289.0,83288.0,0.3022126]
[1743679017218,0.512133,83289.0,83288.0,0.2556126]
[1743679020916,0.500127,83289.0,83288.0,0.2556126]
[1743679021855,0.500127,83289.0,83288.0,0.4957426]
[1743679021856,0.26,83289.0,83288.0,0.4957426]
[1743679022837,0.512133,83289.0,83288.0,0.2556126]
[1743679023269,0.500127,83289.0,83288.0,0.2556126]
[1743679023467,0.26,83289.0,83288.0,0.2556126]
[1743679023798,0.500127,83289.0,83288.0,0.2556126]
[1743679023926,0.26,83289.0,83288.0,0.2556126]
[1743679024329,0.500127,83289.0,83288.0,0.2556126]
[1743679024770,0.500127,83289.0,83288.0,0.26311581]
[1743679025245,0.500127,83289.0,83288.0,0.26686742]
[1743679026013,0.500127,83289.0,83288.0,0.27887218]
[1743679026651,0.500127,83289.0,83288.0,0.28779716]
[1743679026828,0.500127,83289.0,83288.0,0.29379972]
[1743679027914,0.26,83289.0,83288.0,0.29379972]
[1743679028128,0.500127,83289.0,83288.0,0.27429175]
[1743679028535,0.500127,83289.0,83288.0,0.29380018]
[1743679028892,0.26,83289.0,83288.0,0.29380018]
[1743679029093,0.512133,83289.0,83288.0,0.29380018]
[1743679029245,0.512133,83289.0,83288.0,0.15528018]
[1743679029588,0.512133,83289.0,83288.0,0.29380018]
[1743679029882,0.500127,83289.0,83288.0,0.29380018]
[1743679030673,0.26,83289.0,83288.0,0.53393018]
[1743679030968,0.500127,83289.0,83288.0,0.29380018]
[1743679032052,0.26,83289.0,83288.0,0.53393018]
[1743679032371,0.26,83289.0,83288.0,0.54593618]
[1743679036074,0.26,83289.0,83288.0,0.55110161]
[1743679037696,0.26,83289.0,83288.0,0.54593618]
[1743679039590,0.23298988,83289.0,83288.0,0.54593618]
[1743679039824,0.0001685,83302.0,83288.0,0.54593618]
[1743679039825,0.0001685,83302.0,83301.0,0.252097]
[1743679040203,0.0701685,83302.0,83301.0,0.49812774]
[1743679040493,0.0701685,83302.0,83301.0,0.4606526]
[1743679041049,0.0701685,83302.0,83301.0,0.46957758]
[1743679041245,0.0701685,83302.0,83301.0,0.48908601]
[1743679041663,0.0701685,83302.0,83301.0,0.49884018]
[1743679043257,0.0701685,83302.0,83301.0,0.87625619]
[1743679043475,0.0001685,83302.0,83301.0,0.87625619]
[1743679045249,0.0001685,83302.0,83301.0,1.01473619]
[1743679045475,0.0001685,83302.0,83301.0,0.97732018]
[1743679048192,0.0001685,83302.0,83301.0,1.64856134]
[1743679050375,0.0001685,83302.0,83301.0,1.51008134]
[1743679050735,0.0101685,83302.0,83301.0,1.64856134]
[1743679051207,0.0101685,83302.0,83301.0,1.65370765]
[1743679052552,0.0101685,83302.0,83301.0,1.64856134]
[1743679052777,0.0101685,83302.0,83301.0,1.55676134]
[1743679053538,0.0101685,83302.0,83301.0,0.88552018]
[1743679054484,0.0101685,83302.0,83301.0,0.88548018]
[1743679055691,0.0101685,83302.0,83301.0,0.87947762]
[1743679056694,0.0101685,83302.0,83301.0,0.74103762]
[1743679056912,0.2622625,83302.0,83301.0,0.14894062]
[1743679057585,0.2622625,83302.0,83301.0,0.01267659]
[1743679058188,0.2622625,83302.0,83301.0,0.00375161]
[1743679058418,0.252102,83299.0,83298.0,0.00750324]
[1743679058648,0.252102,83299.0,83292.0,0.10755875]
[1743679058649,0.252118,83294.0,83293.0,0.00750324]
[1743679058881,0.532118,83294.0,83293.0,0.00750324]
[1743679060363,0.252121,83293.0,83292.0,0.10755875]
[1743679060589,0.502121,83293.0,83292.0,0.10755875]
[1743679061027,0.25213,83290.0,83289.0,0.000337]
[1743679061231,0.49213,83290.0,83289.0,0.1170926]
[1743679066301,0.93249285,83283.0,83282.0,2.4e-07]
[1743679066844,1.07097285,83283.0,83282.0,2.4e-07]
[1743679067055,1.07984193,83283.0,83282.0,2.4e-07]
[1743679067256,0.252184,83272.0,83271.0,0.00892498]
[1743679067539,0.252218,83261.0,83260.0,0.00375161]
[1743679067741,0.522218,83261.0,83260.0,0.12050721]
[1743679068175,0.522218,83261.0,83260.0,0.1167556]
[1743679069408,0.252236,83255.0,83254.0,0.13848]
[1743679069547,0.492236,83255.0,83254.0,0.2552356]
[1743679070167,0.492236,83255.0,83254.0,0.1167556]
[1743679072010,0.492236,83255.0,83254.0,0.1170926]
[1743679073140,0.492236,83255.0,83254.0,0.3693316]
[1743679073141,0.24,83255.0,83254.0,0.3693316]
[1743679073353,0.24,83255.0,83254.0,0.5078516]
[1743679074499,0.24,83255.0,83254.0,0.4958406]
[1743679075070,0.480225,83255.0,83254.0,0.2556126]
[1743679075633,0.492236,83255.0,83254.0,0.2556126]
[1743679075860,0.493236,83255.0,83254.0,0.2556126]
[1743679077144,0.493236,83255.0,83254.0,0.1170926]
[1743679077797,0.481225,83255.0,83254.0,0.1170926]
[1743679078154,0.481225,83255.0,83254.0,0.3573206]
[1743679078155,0.241,83255.0,83254.0,0.3573206]
[1743679078367,0.241,83255.0,83254.0,0.1170926]
[1743679078591,0.241,83255.0,83254.0,0.3573206]
[1743679079675,0.241,83255.0,83254.0,0.36482728]
[1743679080516,0.241,83255.0,83254.0,0.37683828]
[1743679081470,0.241,83255.0,83254.0,0.47173828]
[1743679083601,0.241,83255.0,83254.0,0.47549162]
[1743679083806,0.241,83255.0,83254.0,0.48749681]
[1743679084792,0.241,83255.0,83254.0,0.18945781]
[1743679085017,0.241,83255.0,83254.0,0.14035781]
[1743679085018,0.493236,83255.0,83254.0,0.14035781]
[1743679085219,0.493236,83255.0,83254.0,0.27887781]
[1743679085921,0.493236,83255.0,83254.0,0.14035781]
[1743679086431,0.493236,83255.0,83254.0,0.12835262]
[1743679087008,0.493236,83255.0,83254.0,0.01159702]
[1743679087952,0.493236,83255.0,83254.0,0.00784368]
[1743679088614,0.882036,83255.0,83254.0,6.8e-07]
[1743679088797,0.89657685,83255.0,83254.0,6.8e-07]
[1743679090012,0.592245,83252.0,83251.0,0.0043372]
[1743679090226,0.832245,83252.0,83251.0,0.0043372]
[1743679090717,0.93888585,83252.0,83251.0,0.0043372]
[1743679091336,1.05562986,83252.0,83251.0,2e-07]
[1743679091509,0.639963,83246.0,83245.0,1e-06]
[1743679091713,0.91450385,83246.0,83245.0,1e-06]
[1743679093423,1.07635945,83246.0,83245.0,1e-06]
[1743679097709,1.07735945,83246.0,83245.0,1e-06]
[1743679097908,1.19410346,83246.0,83245.0,1e-06]
[1743679098133,0.96060385,83246.0,83245.0,1e-06]
[1743679100603,0.853263,83246.0,83245.0,1e-06]
[1743679100831,0.513263,83246.0,83245.0,1e-06]
[1743679102500,0.261,83246.0,83245.0,1e-06]
[1743679102672,0.501251,83246.0,83245.0,0.1167566]
[1743679102876,0.261,83246.0,83245.0,0.4140226]
[1743679103595,0.261,83246.0,83245.0,0.41777617]
[1743679103799,0.261,83246.0,83245.0,0.55633617]
[1743679104203,0.261,83246.0,83245.0,0.57585987]
[1743679104555,0.261,83246.0,83245.0,0.58776276]
[1743679105777,0.261,83246.0,83245.0,0.59670811]
[1743679107538,0.261,83246.0,83245.0,0.34444211]
[1743679107746,0.261,83246.0,83245.0,0.20588211]
[1743679107747,0.501251,83246.0,83245.0,0.20588211]
[1743679107950,0.513263,83246.0,83245.0,0.29944211]
[1743679108157,0.513263,83246.0,83245.0,0.13992286]
[1743679108939,0.261,83246.0,83245.0,0.13616929]
[1743679109145,0.261,83246.0,83245.0,0.38092549]
[1743679110321,0.261,83246.0,83245.0,0.38843529]
[1743679111854,0.273012,83246.0,83245.0,0.13616929]
[1743679112078,0.513263,83246.0,83245.0,0.27468929]
[1743679112838,0.513263,83246.0,83245.0,0.2627864]
[1743679113790,0.513263,83246.0,83245.0,0.2552766]
[1743679113995,0.513263,83246.0,83245.0,0.1167566]
[1743679115025,0.513263,83246.0,83245.0,1e-06]
[1743679116068,0.560763,83246.0,83245.0,1e-06]
[1743679118502,0.513263,83246.0,83245.0,1e-06]
[1743679122869,0.52780385,83246.0,83245.0,1e-06]
[1743679124271,0.98454786,83246.0,83245.0,1e-06]
[1743679124800,1.19800346,83246.0,83245.0,1e-06]
[1743679124980,1.19800346,83246.0,83236.0,0.000337]
[1743679124981,0.59229,83237.0,83236.0,1e-06]
[1743679125132,0.85229,83237.0,83236.0,1e-06]
[1743679125339,0.592294,83236.0,83235.0,8e-07]
[1743679125539,0.83683485,83236.0,83235.0,8e-07]
[1743679128130,0.95357886,83236.0,83235.0,8e-07]
[1743679128355,0.83683485,83236.0,83235.0,8e-07]
[1743679128689,0.88303485,83236.0,83235.0,8e-07]
[1743679133267,0.88320335,83236.0,83235.0,8e-07]
[1743679135011,0.83700335,83236.0,83235.0,8e-07]
[1743679135614,0.8224625,83236.0,83235.0,8e-07]
[1743679136167,0.4824625,83236.0,83235.0,8e-07]
[1743679137791,0.2301685,83236.0,83235.0,0.1629564]
[1743679137992,0.2301685,83236.0,83235.0,0.4032394]
[1743679138233,0.2301685,83236.0,83235.0,0.4152534]
[1743679139078,0.2301685,83236.0,83235.0,0.4602534]
[1743679139483,0.2301685,83236.0,83235.0,0.4677632]
[1743679140820,0.2301685,83236.0,83235.0,0.47977342]
[1743679141027,0.2301685,83236.0,83235.0,0.48872382]
[1743679141202,0.2301685,83236.0,83235.0,0.82872382]
[1743679141500,0.0001685,83236.0,83235.0,0.82872382]
[1743679142671,0.001,83246.0,83245.0,0.252266]
[1743679142875,0.001,83246.0,83245.0,0.5997816]
[1743679142876,0.011,83246.0,83245.0,0.5997816]
[1743679143945,0.011,83246.0,83245.0,0.61930162]
[1743679144477,0.011,83246.0,83245.0,0.36703562]
[1743679144672,0.251251,83246.0,83245.0,0.18307562]
[1743679144880,0.251251,83246.0,83245.0,0.32159562]
[1743679145095,0.011,83246.0,83245.0,0.32159562]